lending/lending_fUSD_20250424
["ID","MTS","AMOUNT","RATE_DAILY","PERIOD"]
[358875552,1745506246348,-450.34,0.00040633,2]
[358875553,1745506246359,-450.34,0.00040633,2]
[358875554,1745506246370,-450.34,0.00040633,2]
[358875555,1745506246380,-450.34,0.00040633,2]
[358875556,1745506246391,-879.68,0.00040633,2]
[358875557,1745506246402,-450.18,0.00040633,2]
[358875559,1745506246413,-1151.08,0.00040643,2]
[358875560,1745506246425,-753.44,0.00040643,2]
[358875561,1745506246437,-164.9,0.00040643,2]
[358875562,1745506246448,-351.2,0.00040643,2]
[358875564,1745506246458,-351.2,0.00040643,2]
[358875566,1745506246469,-900.36,0.00040643,2]
[358875568,1745506246480,-351.2,0.00040643,2]
[358875569,1745506246491,-450.18,0.00040643,2]
[358875570,1745506246503,-351.2,0.00040643,2]
[358875571,1745506246514,-351.2,0.00040643,2]
[358875572,1745506246525,-351.2,0.00040643,2]
[358875573,1745506246535,-350.96,0.00040643,2]
[358875574,1745506246546,-501.86,0.000407,3]
[358875575,1745506246556,-501.86,0.000407,3]
[358875576,1745506246567,-150.0,0.00040706,2]
[358875577,1745506246584,-14648.95045074,0.00040736,15]
[358875578,1745506246594,-300.0,0.000408,2]
[358875579,1745506246606,-1068.0807044,0.00040843,4]
[358875580,1745506246617,-412.25499,0.00040888,30]
[358875582,1745506246628,-1374.1833,0.00040888,7]
[358875584,1745506246638,-50000.0,0.00041,11]
[358875586,1745506246648,-200.0,0.00041,64]
[358875588,1745506246658,-200.0,0.00041,64]
[358875590,1745506246669,-850.0,0.00041,2]
[358875592,1745506246679,-167.943953,0.00041062,60]
[358875594,1745506246689,-165.32,0.00041066,120]
[358875596,1745506246701,-297.99,0.00041066,120]
[358875598,1745506246711,-168.0,0.00041066,120]
[358875600,1745506246722,-150.5,0.00041066,120]
[358875602,1745506246732,-150.5,0.00041076,120]
[358875603,1745506246743,-150.5,0.00041076,120]
[358875604,1745506246753,-168.0,0.00041076,120]
[358875605,1745506246763,-150.5,0.0004108,120]
[358875606,1745506246774,-67772.92029226,0.0004108,2]
[358875607,1745506246784,-150.5,0.00041086,120]
[358875608,1745506246794,-150.5,0.00041086,120]
[358875609,1745506246804,-168.0,0.00041086,120]
[358875610,1745506246816,-412.25499,0.00041088,30]
[358875611,1745506246831,-150.5,0.0004109,120]
[358875612,1745506246842,-354.99999999,0.00041095,30]
[358875613,1745506246853,-345.33121678,0.00041095,120]
[358875614,1745506246864,-421.32,0.00041095,120]
[358875615,1745506246875,-700.0,0.00041095,120]
[358875616,1745506246889,-700.0,0.00041095,120]
[358875617,1745506246899,-700.0,0.00041095,120]
[358875618,1745506246909,-700.0,0.00041095,120]
[358875619,1745506246920,-700.0,0.00041095,120]
[358875620,1745506246930,-700.0,0.00041095,120]
[358875621,1745506246941,-700.0,0.00041095,120]
[358875622,1745506246952,-700.0,0.00041095,120]
[358875623,1745506246962,-700.0,0.00041095,120]
[358875624,1745506246972,-700.0,0.00041095,120]
[358875625,1745506246984,-700.0,0.00041095,120]
[358875626,1745506246995,-574.16238728,0.00041095,120]
[358875627,1745506247005,-2000.0,0.00041095,2]
[358875628,1745506247015,-2000.0,0.00041095,2]
[358875629,1745506247025,-2000.0,0.00041095,2]
[358875630,1745506247036,-2000.0,0.00041095,2]
[358875631,1745506247046,-2000.0,0.00041095,2]
[358875632,1745506247056,-2000.0,0.00041095,2]
[358875633,1745506247067,-2000.0,0.00041095,2]
[358875634,1745506247079,-2000.0,0.00041095,2]
[358875635,1745506247089,-2000.0,0.00041095,2]
[358875636,1745506247100,-2000.0,0.00041095,2]
[358875637,1745506247110,-2000.0,0.00041095,2]
[358875638,1745506247120,-2000.0,0.00041095,2]
[358875639,1745506247130,-2000.0,0.00041095,2]
[358875640,1745506247140,-2000.0,0.00041095,2]
[358875641,1745506247150,-2000.0,0.00041095,2]
[358875642,1745506247160,-2000.0,0.00041095,2]
[358875643,1745506247170,-1682.06419382,0.00041095,2]
[358875644,1745506247180,-6227.52,0.00041095,120]
[358875645,1745506247191,-500.0,0.00041096,10]
[358875646,1745506247201,-2000.0,0.00041096,10]
[358875647,1745506247212,-500.0,0.00041096,30]
[358875648,1745506247223,-438.0,0.00041096,30]
[358875649,1745506247233,-267.95,0.00041096,30]
[358875650,1745506247243,-685.77517307,0.00041096,10]
[358875651,1745506247252,-200.74282385,0.00041096,2]
[358875652,1745506247262,-500.0,0.00041096,2]
[358875653,1745506247272,-500.0,0.00041096,2]
[358875654,1745506247282,-500.0,0.00041096,2]
[358875655,1745506247292,-150.0,0.00041096,2]
[358875656,1745506247302,-500.0,0.00041096,2]
[358875657,1745506247313,-153.11859306,0.00041096,2]
[358875658,1745506247325,-150.0,0.00041096,2]
[358875659,1745506247337,-152.5973865,0.00041096,2]
[358875660,1745506247352,-500.0,0.00041096,2]
[358875661,1745506247362,-500.0,0.00041096,2]
[358875662,1745506247373,-500.0,0.00041096,7]
[358875663,1745506247383,-500.0,0.00041096,7]
[358875664,1745506247394,-151.31344373,0.00041096,7]
[358875665,1745506247404,-150.0,0.00041096,7]
[358875666,1745506247415,-150.0,0.00041096,7]
[358875667,1745506247427,-454.0,0.00041096,7]
[358875668,1745506247438,-150.0,0.00041096,7]
[358875669,1745506247448,-155.88779258,0.00041096,2]
[358875670,1745506247458,-500.0,0.00041096,2]
[358875671,1745506247468,-151.53725633,0.00041096,2]
[358875672,1745506247479,-500.0,0.00041096,2]
[358875673,1745506247489,-500.0,0.00041096,2]
[358875674,1745506247499,-150.0,0.00041096,2]
[358875675,1745506247510,-150.0,0.00041096,2]
[358875676,1745506247520,-1725.0,0.00041096,2]
[358875677,1745506247530,-150.0,0.00041096,2]
[358875678,1745506247541,-193.95062019,0.00041096,2]
[358875679,1745506247551,-479.0,0.00041096,2]
[358875680,1745506247562,-500.0,0.00041096,2]
[358875681,1745506247572,-970.0,0.00041096,2]
[358875682,1745506247583,-500.0,0.00041096,2]
[358875683,1745506247592,-500.0,0.00041096,2]
[358875684,1745506247602,-150.0,0.00041096,2]
[358875685,1745506247612,-998.79362571,0.00041183,10]
[358875686,1745506247623,-24494.91,0.000412,60]
[358875687,1745506247632,-300.0,0.000412,2]
[358875688,1745506247642,-309.29654756,0.00041221,2]
[358875689,1745506247652,-412.25499,0.00041288,30]
[358875690,1745506247662,-501.86,0.000413,3]
[358875691,1745506247672,-501.86,0.000413,3]
[358875692,1745506247683,-8219.01,0.00041359,2]
[358875693,1745506247694,-500.0,0.0004137,2]
[358875694,1745506247706,-500.0,0.0004137,2]
[358875695,1745506247716,-500.0,0.0004137,2]
[358875696,1745506247726,-253.30778659,0.0004137,2]
[358875697,1745506247736,-500.0,0.0004137,2]
[358875698,1745506247746,-150.0,0.0004137,2]
[358875699,1745506247756,-500.0,0.0004137,2]
[358875700,1745506247766,-500.0,0.0004137,2]
[358875701,1745506247776,-500.0,0.0004137,7]
[358875702,1745506247787,-500.0,0.0004137,7]
[358875703,1745506247796,-150.0,0.0004137,7]
[358875704,1745506247806,-163.49738022,0.0004137,7]
[358875705,1745506247818,-454.0,0.0004137,7]
[358875706,1745506248170,-150.0,0.0004137,7]
[358875707,1745506248217,-500.0,0.0004137,2]
[358875708,1745506248227,-500.0,0.0004137,2]
[358875709,1745506248237,-500.0,0.0004137,2]
[358875710,1745506248247,-152.53372059,0.0004137,2]
[358875711,1745506248256,-1725.0,0.0004137,2]
[358875712,1745506248266,-150.0,0.0004137,2]
[358875713,1745506248276,-479.0,0.0004137,2]
[358875714,1745506248286,-500.0,0.0004137,2]
[358875715,1745506248296,-970.0,0.0004137,2]
[358875716,1745506248306,-500.0,0.0004137,2]
[358875717,1745506248316,-500.0,0.0004137,2]
[358875718,1745506248328,-150.0,0.0004137,2]
[358875719,1745506248338,-1335.0,0.00041478,2]
[358875720,1745506248350,-918.0,0.00041478,2]
[358875721,1745506248360,-1285.0,0.00041478,2]
[358875722,1745506248371,-796.0,0.00041478,2]
[358875723,1745506248383,-2060.0,0.00041478,2]
[358875724,1745506248393,-578.0,0.00041478,2]
[358875725,1745506248404,-548.0,0.00041478,2]
[358875726,1745506248414,-910.0,0.00041478,2]
[358875727,1745506248425,-1445.0,0.00041478,2]
[358875728,1745506248436,-3986.0,0.00041478,2]
[358875729,1745506248446,-152.0,0.00041478,2]
[358875730,1745506248457,-871.0,0.00041478,2]
[358875731,1745506248468,-412.25499,0.00041488,30]
[358875732,1745506248478,-300.0,0.000416,2]
[358875733,1745506248489,-858.89,0.00041604,2]
[358875734,1745506248500,-150.0,0.00041622,2]
[358875735,1745506248510,-1000.0,0.00041624,14]
[358875736,1745506248519,-988.42771834,0.00041644,10]
[358875737,1745506248530,-500.0,0.00041644,2]
[358875738,1745506248540,-539.38058593,0.00041644,2]
[358875739,1745506248550,-500.0,0.00041644,2]
[358875740,1745506248560,-500.0,0.00041644,2]
[358875741,1745506248572,-150.0,0.00041644,2]
[358875742,1745506248582,-223.74969179,0.00041644,2]
[358875743,1745506248592,-500.0,0.00041644,2]
[358875744,1745506248603,-500.0,0.00041644,7]
[358875745,1745506248613,-500.0,0.00041644,7]
[358875746,1745506248623,-150.0,0.00041644,7]
[358875747,1745506248633,-454.0,0.00041644,7]
[358875748,1745506248643,-150.0,0.00041644,7]
[358875749,1745506248652,-500.0,0.00041644,2]
[358875750,1745506248662,-500.0,0.00041644,2]
[358875751,1745506248672,-500.0,0.00041644,2]
[358875752,1745506248682,-1725.0,0.00041644,2]
[358875753,1745506248691,-150.0,0.00041644,2]
[358875754,1745506248702,-479.0,0.00041644,2]
[358875755,1745506248712,-500.0,0.00041644,2]
[358875756,1745506248722,-970.0,0.00041644,2]
[358875757,1745506248732,-500.0,0.00041644,2]
[358875758,1745506248742,-500.0,0.00041644,2]
[358875759,1745506248752,-150.0,0.00041644,2]
[358875760,1745506248761,-412.25499,0.00041688,30]
[358875761,1745506248771,-152.29,0.00041852,2]
[358875762,1745506248781,-412.25499,0.00041888,30]
[358875763,1745506248791,-24494.91,0.000419,60]
[358875764,1745506248802,-501.86,0.000419,3]
[358875765,1745506248812,-403.09140668,0.00041918,2]
[358875766,1745506248823,-500.0,0.00041918,2]
[358875767,1745506248834,-500.0,0.00041918,2]
[358875768,1745506248844,-150.0,0.00041918,2]
[358875769,1745506248854,-500.0,0.00041918,2]
[358875770,1745506248863,-500.0,0.00041918,7]
[358875771,1745506248873,-500.0,0.00041918,7]
[358875772,1745506248883,-218.62084186,0.00041918,7]
[358875773,1745506248893,-454.0,0.00041918,7]
[358875774,1745506248903,-152.77490311,0.00041918,7]
[358875775,1745506248913,-500.0,0.00041918,2]
[358875776,1745506248924,-500.0,0.00041918,2]
[358875777,1745506248934,-500.0,0.00041918,2]
[358875778,1745506248944,-1725.0,0.00041918,2]
[358875779,1745506248954,-150.0,0.00041918,2]
[358875780,1745506248964,-479.0,0.00041918,2]
[358875781,1745506248974,-500.0,0.00041918,2]
[358875782,1745506248984,-970.0,0.00041918,2]
[358875783,1745506248994,-500.0,0.00041918,2]
[358875784,1745506249004,-500.0,0.00041918,2]
[358875785,1745506249014,-7736.39116248,0.00042,12]
[358875786,1745506249763,-1778.56747574,0.00042,12]
[358875801,1745506484301,3397.99256037,0.00037808,60]
[358875808,1745506611818,250.0,0.00017,2]
[358875809,1745506612897,300.0,0.00019,2]
[358875811,1745506651300,500.0,0.000378,60]
[358875812,1745506713301,249.06693167,0.000378,60]
[358875815,1745506780364,201.02,0.00034466,120]
[358875826,1745506969441,1126.5,0.00030137,120]
[358875845,1745507072543,10000.0,0.00037808,60]
[358875847,1745507088839,1833.81,0.00030137,120]
[358875866,1745507215387,3000.0,0.00037808,60]
[358876033,1745507432060,-352.07527512,0.000197,2]
[358876034,1745507432125,-3076.69560488,0.000197,2]
[358876035,1745507432136,-150.0,0.00019799,2]
[358876036,1745507432147,-150.0,0.00019859,2]
[358876037,1745507432158,-300.0,0.00019899,2]
[358876038,1745507432168,-1200.0,0.00019899,2]
[358876039,1745507432178,-300.0,0.00019899,2]
[358876040,1745507432189,-12466.2575,0.000199,2]
[358876041,1745507432199,-773.53288684,0.00019942,2]
[358876042,1745507432210,-4452.40545056,0.0001999,2]
[358876043,1745507432220,-456.10855772,0.00019991,2]
[358876044,1745507432233,-3996.29689284,0.00019991,2]
[358876045,1745507432244,-1481.32,0.0002,2]
[358876046,1745507432255,-16385.75935169,0.000209,3]
[358876047,1745507432265,-350.0,0.00021,2]
[358876048,1745507432276,-255.06,0.00021,2]
[358876049,1745507432286,-5914.89,0.00021,2]
[358876050,1745507432298,-5367.18,0.00021,2]
[358876051,1745507432309,-9999.99,0.00021,2]
[358876052,1745507432320,-507.77188451,0.000211,2]
[358876053,1745507432331,-420.0,0.0002167,2]
[358876055,1745507432343,-420.0,0.0002167,2]
[358876057,1745507432354,-535.1,0.0002167,2]
[358876059,1745507432364,-361.74088993,0.000217,2]
[358876061,1745507432375,-500.0,0.000217,2]
[358876063,1745507432386,-150.0,0.00021724,2]
[358876065,1745507432396,-250.0,0.00021724,2]
[358876067,1745507432406,-1680.0,0.00021774,2]
[358876069,1745507432417,-150.0,0.00021834,2]
[358876072,1745507432428,-228.22,0.00021917,2]
[358876075,1745507432438,-762.75048461,0.00022004,2]
[358876079,1745507432449,-8763.44706237,0.00022031,2]
[358876082,1745507432459,-500.0,0.000221,2]
[358876085,1745507432470,-303.28,0.00022219,2]
[358876089,1745507432480,-301.77,0.00022219,2]
[358876092,1745507432491,-302.85,0.00022219,2]
[358876095,1745507432501,-400.0,0.00023,2]
[358876097,1745507432512,-228.22,0.00023287,2]
[358876099,1745507432523,-587.0,0.00023599,2]
[358876101,1745507432533,-180.0,0.00023599,2]
[358876104,1745507432544,-2351.0,0.00023826,2]
[358876106,1745507432555,-992.53,0.00024595,2]
[358876108,1745507432566,-250.0,0.00024631,2]
[358876110,1745507432577,-228.22,0.00024657,2]
[358876112,1745507432588,-1000.0,0.00024658,2]
[358876114,1745507432599,-306.36923936,0.00024775,2]
[358876117,1745507432610,-450.0,0.00025,2]
[358876119,1745507432623,-1579.19156081,0.00025536,2]
[358876121,1745507432634,-823.0,0.00025699,2]
[358876123,1745507432644,-228.22,0.00026027,2]
[358876125,1745507432655,-3292.0,0.00026071,2]
[358876127,1745507432665,-1675.56741542,0.00026416,2]
[358876129,1745507432676,-407.75421572,0.00026478,2]
[358876131,1745507432686,-200.0,0.00026513,2]
[358876134,1745507432697,-500.0,0.00027,2]
[358876136,1745507432711,-500.0,0.00027179,2]
[358876138,1745507432721,-877.08,0.00027364,2]
[358876140,1745507432732,-228.22,0.00027397,2]
[358876142,1745507432743,-181.10945425,0.00027397,2]
[358876144,1745507432755,-4247.90310805,0.00027397,2]
[358876146,1745507432768,-2327.30689195,0.00027397,2]
[358876149,1745507432779,-507.0,0.000274,2]
[358876150,1745507432792,-200.0,0.000274,2]
[358876152,1745507432802,-1694.45,0.00027425,30]
[358876154,1745507432813,-482.0,0.00027986,2]
[358876157,1745507432825,-4609.0,0.00028528,2]
[358876159,1745507432836,-228.22,0.00028767,2]
[358876160,1745507432847,-6575.21,0.00028767,2]
[358876163,1745507432858,-550.0,0.00029,2]
[358876165,1745507432868,-228.22,0.00030136,2]
[358876167,1745507432880,-6575.21,0.00030137,2]
[358876169,1745507432890,-600.0,0.00031,2]
[358876171,1745507432901,-3178.0,0.00031217,3]
[358876173,1745507432912,-228.22,0.00031506,2]
[358876175,1745507432923,-6575.21,0.00031507,2]
[358876177,1745507432934,-150.0,0.00031578,2]
[358876179,1745507432945,-150.0,0.00031578,2]
[358876182,1745507432956,-150.0,0.0003167,2]
[358876184,1745507432967,-248.223,0.0003167,2]
[358876186,1745507432978,-150.0,0.0003167,2]
[358876225,1745507433350,-150.0,0.0003167,2]
[358876229,1745507433379,-153.739,0.0003167,2]
[358876231,1745507433389,-1335.0,0.0003167,2]
[358876233,1745507433399,-918.0,0.0003167,2]
[358876235,1745507433409,-1285.0,0.0003167,2]
[358876237,1745507433419,-796.0,0.0003167,2]
[358876239,1745507433429,-558.26710804,0.0003167,2]
[358876243,1745507433463,-1501.73289196,0.0003167,2]
[358876245,1745507433473,-910.0,0.0003167,2]
[358876247,1745507433483,-1445.0,0.0003167,2]
[358876249,1745507433494,-578.0,0.0003167,2]
[358876252,1745507433505,-548.0,0.0003167,2]
[358876254,1745507433515,-1133.0,0.0003167,2]
[358876256,1745507433526,-5790.0,0.0003167,2]
[358876258,1745507433536,-3986.0,0.0003167,2]
[358876260,1745507433546,-871.0,0.0003167,2]
[358876262,1745507433557,-724.94,0.00032548,2]
[358876264,1745507433568,-219.4652565,0.00032586,2]
[358876266,1745507433578,-150.0,0.00032586,2]
[358876268,1745507433589,-150.0,0.00032586,2]
[358876270,1745507433599,-150.0,0.00032586,2]
[358876272,1745507433610,-423.51647629,0.00032586,2]
[358876274,1745507433619,-1626.09990562,0.00032586,2]
[358876276,1745507433629,-228.22,0.00032876,2]
[358876278,1745507433639,-160.77,0.00032877,30]
[358876280,1745507433649,-331.56,0.00032877,2]
[358876282,1745507433659,-6575.21,0.00032877,2]
[358876284,1745507433669,-507.93014161,0.000329,2]
[358876286,1745507433679,-1000.0,0.00032928,2]
[358876288,1745507433689,-650.0,0.00033,2]
[358876290,1745507433699,-370.76309055,0.000332,2]
[358876292,1745507433713,-4443.98,0.000336,7]
[358876294,1745507433723,-213.0,0.000338,2]
[358876296,1745507433733,-500.0,0.0003405,5]
[358876298,1745507433743,-500.0,0.0003405,5]
[358876300,1745507433754,-500.0,0.00034073,5]
[358876302,1745507433764,-228.22,0.00034246,2]
[358876304,1745507433775,-29503.1404345,0.0003429,3]
[358876306,1745507433787,-150.0,0.00034294,2]
[358876308,1745507433797,-16858.9373911,0.00034456,3]
[358876310,1745507433807,-461.48,0.00034466,2]
[358876312,1745507433817,-1263.26,0.00034466,2]
[358876314,1745507433827,-200.0,0.00034466,2]
[358876315,1745507433838,-157.84,0.00034466,2]
[358876316,1745507433848,-1035.66,0.00034466,2]
[358876317,1745507433857,-259.52,0.00034466,2]
[358876318,1745507433867,-3000.0,0.00034466,2]
[358876319,1745507433879,-23900.0,0.00034466,2]
[358876320,1745507433888,-1987.75,0.00034466,2]
[358876321,1745507433898,-1000.0,0.00034466,2]
[358876322,1745507433908,-1000.0,0.00034466,2]
[358876323,1745507433918,-5113.29,0.00034466,2]
[358876324,1745507433927,-150.0,0.00034578,2]
[358876325,1745507433938,-16858.9373911,0.0003465,3]
[358876326,1745507433948,-4214.73434778,0.00034656,3]
[358876327,1745507433957,-8429.46869556,0.0003466,3]
[358876328,1745507433967,-150.0,0.0003467,2]
[358876329,1745507433977,-150.0,0.0003467,2]
[358876330,1745507433987,-1335.0,0.0003467,2]
[358876331,1745507433997,-918.0,0.0003467,2]
[358876332,1745507434006,-1285.0,0.0003467,2]
[358876333,1745507434016,-796.0,0.0003467,2]
[358876334,1745507434026,-2060.0,0.0003467,2]
[358876335,1745507434035,-910.0,0.0003467,2]
[358876336,1745507434044,-1445.0,0.0003467,2]
[358876337,1745507434054,-578.0,0.0003467,2]
[358876338,1745507434065,-548.0,0.0003467,2]
[358876339,1745507434074,-1133.0,0.0003467,2]
[358876340,1745507434083,-5790.0,0.0003467,2]
[358876341,1745507434093,-3986.0,0.0003467,2]
[358876342,1745507434102,-871.0,0.0003467,2]
[358876343,1745507434111,-4214.73434778,0.0003479,3]
[358876344,1745507434122,-724.94,0.00034812,2]
[358876345,1745507434132,-300.0,0.00034883,2]
[358876346,1745507434142,-700.0,0.00035,2]
[358876347,1745507434152,-151.84,0.00035014,2]
[358876348,1745507434161,-150.0,0.0003521,2]
[358876349,1745507434171,-320.0,0.0003521,2]
[358876350,1745507434180,-1000.0,0.00035244,2]
[358876351,1745507434190,-4214.73434778,0.0003529,3]
[358876352,1745507434200,-166.66,0.000355,2]
[358876353,1745507434210,-4214.73434778,0.00035557,3]
[358876354,1745507434220,-6384.21,0.00035567,2]
[358876355,1745507434230,-373.0,0.000356,2]
[358876356,1745507434240,-762.0,0.000356,2]
[358876357,1745507434250,-228.22,0.00035616,2]
[358876358,1745507434261,-992.53,0.00035828,2]
[358876359,1745507434271,-150.0,0.00036126,2]
[358876360,1745507434281,-1694.45,0.00036139,30]
[358876361,1745507434292,-300.0,0.00036253,2]
[358876362,1745507434301,-166.66,0.00036672,2]
[358876363,1745507434311,-16858.9373911,0.00036693,4]
[358876364,1745507434320,-4214.73434778,0.00036703,4]
[358876365,1745507434331,-213.0,0.000368,2]
[358876366,1745507434340,-228.22,0.00036986,2]
[358876367,1745507434350,-750.0,0.00037,2]
[358876368,1745507434360,-150.0,0.00037042,2]
[358876369,1745507434369,-724.94,0.00037076,2]
[358876370,1745507434379,-4214.73434778,0.0003756,4]
[358876371,1745507434389,-5859.58018035,0.0003757,2]
[358876372,1745507434399,-160.77,0.00037582,30]
[358876373,1745507434409,-159.55678284,0.00037619,12]
[358876374,1745507434418,-8429.46869556,0.0003766,4]
[358876375,1745507434429,-362.194,0.0003767,2]
[358876376,1745507434439,-918.0,0.0003767,2]
[358876377,1745507434449,-1285.0,0.0003767,2]
[358876378,1745507434459,-796.0,0.0003767,2]
[358876379,1745507434470,-2060.0,0.0003767,2]
[358876380,1745507434479,-910.0,0.0003767,2]
[358876381,1745507434490,-1445.0,0.0003767,2]
[358876382,1745507434500,-578.0,0.0003767,2]
[358876383,1745507434510,-548.0,0.0003767,2]
[358876384,1745507434520,-1133.0,0.0003767,2]
[358876385,1745507434530,-5790.0,0.0003767,2]
[358876386,1745507434540,-3986.0,0.0003767,2]
[358876387,1745507434550,-871.0,0.0003767,2]
[358876388,1745507434560,-3245.149,0.00037686,49]
[358876389,1745507434570,-178.287,0.00037686,49]
[358876390,1745507434580,-172.14,0.00037808,2]
[358876391,1745507434590,-172.14,0.00037808,2]
[358876392,1745507434599,-172.14,0.00037808,2]
[358876393,1745507434608,-172.15742589,0.00037808,2]
[358876394,1745507434618,-166.66,0.00037844,2]
[358876395,1745507434631,-200.0,0.00037913,120]
[358876396,1745507434642,-150.0,0.00037958,2]
[358876397,1745507434652,-500.0,0.000383,2]
[358876398,1745507434662,-228.22,0.00038356,2]
[358876399,1745507434673,-516.12211635,0.00038356,2]
[358876400,1745507434683,-4214.73434778,0.00038374,4]
[358876401,1745507434693,-5859.58018029,0.00038384,2]
[358876402,1745507434705,-1245.2,0.00038424,5]
[358876403,1745507434716,-1266.63,0.00038424,5]
[358876404,1745507434726,-1254.89,0.00038424,5]
[358876405,1745507434736,-1229.8,0.00038424,5]
[358876406,1745507434749,-16858.9373911,0.00038535,4]
[358876407,1745507434759,-983.48431059,0.00038535,4]
[358876408,1745507434769,-4214.73434778,0.0003875,4]
[358876409,1745507434779,-1000.0,0.00038774,2]
[358876410,1745507434790,-150.0,0.00038874,2]
[358876411,1745507434799,-357.599999,0.00039,58]
[358876412,1745507434809,-800.0,0.00039,2]
[358876413,1745507434819,-166.66,0.00039015,2]
[358876414,1745507434830,-482.0,0.00039032,5]
[358876415,1745507434839,-157.84,0.00039032,2]
[358876416,1745507434849,-504.86494383,0.00039042,5]
[358876417,1745507434859,-150.0,0.00039042,5]
[358876418,1745507434870,-319.51788262,0.0003912,5]
[358876419,1745507434881,-150.0,0.00039169,5]
[358876420,1745507434891,-683.8984,0.00039183,30]
[358876421,1745507434901,-4214.73434778,0.00039189,4]
[358876422,1745507434912,-5859.58018029,0.00039199,2]
[358876423,1745507434922,-724.94,0.0003934,2]
[358876424,1745507434932,-1254.0,0.00039427,5]
[358876425,1745507434942,-1121.16760011,0.00039529,5]
[358876426,1745507434952,-909.2293251,0.00039529,5]
[358876427,1745507434962,-1000.0,0.00039552,5]
[358876428,1745507434972,-151.0,0.0003959,5]
[358876429,1745507434982,-1000.0,0.00039634,7]
[358876430,1745507434992,-4214.73434778,0.00039716,4]
[358876431,1745507435002,-228.22,0.00039726,2]
[358876432,1745507435013,-500.0,0.00039726,15]
[358876433,1745507435022,-252.33515066,0.00039726,15]
[358876434,1745507435032,-500.0,0.00039726,15]
[358876435,1745507435041,-150.0,0.0003979,2]
[358876436,1745507435051,-983.48431059,0.0003989,4]
[358876437,1745507435061,-231.7893,0.000399,2]
[358876438,1745507435071,-382.4543,0.000399,2]
[358876439,1745507435081,-300.0,0.000399,14]
[358876440,1745507435090,-5702.6584546,0.000399,30]
[358876441,1745507435099,-282.77894792,0.000399,15]
[358876442,1745507435108,-71650.4839123,0.0003998,4]
[358876443,1745507435118,-3933.93724236,0.0003998,4]
[358876444,1745507435132,-4917.42155295,0.0003999,4]
[358876445,1745507435142,-50000.0,0.0004,10]
[358876446,1745507435152,-111257.86760881,0.0004,2]
[358876447,1745507435162,-200.0,0.0004,61]
[358876448,1745507435172,-200.0,0.0004,61]
[358876449,1745507435181,-153.84,0.0004,30]
[358876450,1745507435191,-300.0,0.0004,2]
[358876451,1745507435201,-983.48431059,0.00040003,4]
[358876452,1745507435210,-5859.58018029,0.00040013,15]
[358876453,1745507435220,-152.0,0.00040138,5]
[358876454,1745507435230,-166.66,0.00040187,2]
[358876455,1745507435239,-167.943954,0.00040376,60]
[358876456,1745507435249,-300.0,0.000404,2]
[358876457,1745507435259,-168.04,0.00040438,2]
[358876458,1745507435268,-150.0,0.00040488,7]
[358876459,1745507435278,-150.0,0.00040558,7]
[358876460,1745507435287,-2288.59,0.00040559,2]
[358876461,1745507435297,-1764.0,0.000406,7]